bitfinex/quotes_ETHUSD_20241101
["timestamp","ask_amount","ask_price","bid_price","bid_amount"]
[1730458532896,3.96937,2519.3,2519.0,0.7994]
[1730458533295,3.96916,2519.5,2519.0,0.7994]
[1730458533296,3.96921,2519.4,2519.0,0.7994]
[1730458533663,3.96916,2519.5,2519.0,0.7994]
[1730458533858,3.96937,2519.3,2519.0,0.7994]
[1730458534472,7.93882,2519.3,2519.0,0.7994]
[1730458534693,3.96937,2519.3,2519.0,0.7994]
[1730458538463,7.93884,2519.3,2519.0,0.7994]
[1730458538663,3.96937,2519.3,2519.0,0.7994]
[1730458539084,3.96921,2519.4,2519.1,1.81599858]
[1730458539302,3.96921,2519.4,2519.0,0.7994]
[1730458539974,3.96916,2519.5,2519.2,0.7822]
[1730458540175,4.79828,2519.4,2518.7,5.78618858]
[1730458540379,4.79828,2519.4,2518.6,4.75254]
[1730458540380,3.96978,2519.1,2518.6,4.75254]
[1730458540906,3.96978,2519.1,2518.6,4.8319396]
[1730458541062,3.96978,2519.1,2518.7,1.81599858]
[1730458541266,3.96951,2519.2,2518.7,5.78617858]
[1730458541463,3.96951,2519.2,2518.8,0.7822]
[1730458541765,7.93897,2519.3,2518.8,5.40912786]
[1730458542303,3.96953,2519.2,2518.8,5.40912786]
[1730458543518,3.9698,2519.1,2518.8,0.7822]
[1730458543703,3.96976,2519.1,2518.8,0.7822]
[1730458544335,3.96945,2519.3,2518.8,4.75232]
[1730458544623,3.96945,2519.3,2519.0,0.8215]
[1730458544624,3.96944,2519.3,2519.0,0.8215]
[1730458545299,6.96915,2519.5,2519.0,5.45206586]
[1730458545830,3.96926,2519.4,2519.0,5.45206586]
[1730458545992,6.96915,2519.5,2519.0,1.48225586]
[1730458546329,6.96915,2519.5,2519.0,5.45203586]
[1730458546616,3.96929,2519.4,2519.0,1.48225586]
[1730458547280,3.96929,2519.4,2519.0,0.8215]
[1730458547281,3.96942,2519.3,2519.0,0.8215]
[1730458549819,7.93888,2519.3,2519.0,0.8215]
[1730458550329,3.9696,2519.2,2519.0,0.8215]
[1730458551028,3.96942,2519.3,2519.0,0.8215]
[1730458551684,3.96953,2519.2,2519.0,0.8215]
[1730458554229,6.96916,2519.5,2519.0,0.8215]
[1730458554531,3.96943,2519.3,2519.0,0.8215]
[1730458558552,3.96953,2519.2,2519.0,0.8215]
[1730458559142,3.96953,2519.2,2518.8,0.7687]
[1730458559143,3.96979,2519.1,2518.8,0.7687]
[1730458559314,3.9699,2519.0,2518.8,0.7687]
[1730458559516,3.9699,2519.0,2518.6,0.7687]
[1730458560137,3.9699,2519.0,2518.6,4.73912]
[1730458560614,3.9699,2519.0,2518.6,0.7687]
[1730458560815,0.791,2518.9,2518.4,4.74229]
[1730458561050,0.791,2518.9,2518.4,0.7716]
[1730458561051,3.97026,2518.8,2518.4,0.7716]
[1730458561219,3.97037,2518.7,2518.4,0.7716]
[1730458562616,3.97026,2518.8,2518.4,0.7716]
[1730458562857,3.96992,2519.0,2518.4,4.05008121]
[1730458563059,7.93986,2519.0,2518.5,4.74218]
[1730458563761,3.96992,2519.0,2518.5,3.9706]
[1730458564063,3.96992,2519.0,2518.6,0.7716]
[1730458564252,3.96992,2519.0,2518.6,4.74201]
[1730458564654,3.96992,2519.0,2518.6,0.7716]
[1730458565157,7.93983,2519.0,2518.6,0.7716]
[1730458565367,3.96991,2519.0,2518.6,0.7716]
[1730458565573,3.96967,2519.1,2518.6,0.7716]
[1730458565775,3.96996,2519.0,2518.6,0.7716]
[1730458565926,3.96967,2519.1,2518.6,5.45652066]
[1730458566340,3.96967,2519.1,2518.7,0.7512]
[1730458566562,7.93946,2519.1,2518.7,0.7512]
[1730458566767,3.96967,2519.1,2518.7,0.7512]
[1730458566936,7.93948,2519.1,2518.7,0.7512]
[1730458567264,3.96967,2519.1,2518.7,1.39372807]
[1730458567470,3.96983,2519.0,2518.7,1.39372807]
[1730458568046,3.96967,2519.1,2518.7,1.39372807]
[1730458568534,3.96967,2519.1,2518.7,5.36398807]
[1730458571469,4.76044,2519.3,2518.7,5.36398807]
[1730458571768,3.96953,2519.2,2518.7,9.33410807]
[1730458571953,4.76044,2519.3,2518.8,1.76561081]
[1730458571954,3.96944,2519.3,2518.8,1.76561081]
[1730458572160,3.96952,2519.2,2518.8,4.80233]
[1730458574471,3.96936,2519.3,2518.8,4.80224]
[1730458575380,3.96936,2519.3,2518.8,8.77228]
[1730458575537,3.96936,2519.3,2519.0,0.7686]
[1730458576873,3.96955,2519.2,2519.0,0.7686]
[1730458580169,7.93915,2519.2,2519.0,0.7686]
[1730458580477,3.96955,2519.2,2519.0,0.7686]
[1730458582053,3.96939,2519.3,2519.0,0.7686]
[1730458582579,3.9693,2519.4,2519.0,0.7686]
[1730458582941,3.96937,2519.3,2519.0,0.7686]
[1730458583978,3.9693,2519.4,2519.0,0.7686]
[1730458584175,3.9693,2519.4,2519.0,4.7384]
[1730458584378,7.93863,2519.4,2519.0,0.7686]
[1730458584584,3.96939,2519.3,2519.0,0.7686]
[1730458585181,3.9693,2519.4,2519.0,4.7384]
[1730458585488,3.96937,2519.3,2519.0,1.639434]
[1730458587580,3.96937,2519.3,2519.0,0.7686]
[1730458587783,3.96954,2519.2,2519.0,0.7686]
[1730458588880,3.96937,2519.3,2519.0,0.7686]
[1730458589682,3.9696,2519.2,2518.8,0.55]
[1730458592084,3.9696,2519.2,2518.9,0.8095]
[1730458595801,3.96939,2519.3,2518.9,0.8095]
[1730458596605,0.7765,2519.5,2519.0,0.55]
[1730458596796,3.96921,2519.4,2519.0,0.55]
[1730458596963,3.96921,2519.4,2518.9,0.8095]
[1730458597167,0.7765,2519.5,2518.9,0.8095]
[1730458597168,3.96953,2519.2,2518.9,0.8095]
[1730458602777,7.93917,2519.2,2518.9,0.8095]
[1730458602980,3.96985,2519.0,2518.7,0.8227]
[1730458603213,3.96985,2519.0,2518.6,0.55]
[1730458603373,3.96999,2518.9,2518.5,0.8227]
[1730458603573,3.97022,2518.8,2518.5,0.8227]
[1730458603891,3.97022,2518.8,2518.3,4.79359]
[1730458603892,3.97027,2518.8,2518.3,4.79359]
[1730458604202,3.97027,2518.8,2518.3,5.82208664]
[1730458604369,3.97027,2518.8,2518.3,4.79359]
[1730458604806,3.97027,2518.8,2518.3,5.82211655]
[1730458605170,4.7206,2518.9,2518.3,1.85122655]
[1730458605171,3.97031,2518.7,2518.3,1.85122655]
[1730458605408,3.97031,2518.7,2518.3,0.8227]
[1730458605608,3.97031,2518.7,2518.3,1.85122655]
[1730458606319,3.97031,2518.7,2518.3,1.85113196]
[1730458606470,3.97031,2518.7,2518.3,0.8227]
[1730458609117,3.97022,2518.8,2518.3,4.79357]
[1730458610128,4.7207,2518.9,2518.4,3.97077]
[1730458610332,3.96999,2518.9,2518.5,2.64449858]
[1730458610710,3.96999,2518.9,2518.5,0.8285]
[1730458611100,7.94006,2518.9,2518.5,0.8285]
[1730458611325,3.96999,2518.9,2518.5,0.8285]
[1730458611643,3.96999,2518.9,2518.5,1.59582344]
[1730458613006,7.94006,2518.9,2518.5,1.59582344]
[1730458613207,3.96999,2518.9,2518.5,1.59582344]
[1730458613820,7.9401,2518.9,2518.5,1.59582344]
[1730458614531,3.96999,2518.9,2518.5,1.59582344]
[1730458614738,7.94008,2518.9,2518.5,1.59582344]
[1730458617037,3.96999,2518.9,2518.5,1.59582344]
[1730458618844,7.94007,2518.9,2518.5,1.59582344]
[1730458620335,3.96999,2518.9,2518.5,0.8285]
[1730458620851,3.96999,2518.9,2518.5,4.79911]
[1730458622350,3.96976,2519.1,2518.5,4.79911]
[1730458622351,3.96976,2519.1,2518.5,6.61510858]
[1730458622647,3.96983,2519.0,2518.5,6.61500858]
[1730458622820,3.96983,2519.0,2518.5,10.58554858]
[1730458623029,3.96983,2519.0,2518.5,6.61500858]
[1730458624712,6.96974,2519.1,2518.7,0.7913]
[1730458624952,3.96949,2519.3,2518.8,3.9701]
[1730458625155,3.9696,2519.2,2518.7,6.57757858]
[1730458625721,7.93896,2519.3,2518.7,5.78620858]
[1730458625954,3.96913,2519.5,2519.0,3.96974]
[1730458626273,7.93829,2519.5,2519.1,2.59389858]
[1730458626632,3.96924,2519.4,2519.1,2.59389858]
[1730458627161,3.96924,2519.4,2519.1,0.7779]
[1730458627162,3.96936,2519.3,2519.1,0.7779]
[1730458628027,4.366124,2519.4,2519.1,0.7779]
[1730458628227,3.9692,2519.4,2519.1,0.7779]
[1730458628852,7.93851,2519.4,2519.1,0.7779]
[1730458629065,3.9692,2519.4,2519.1,0.7779]
[1730458629926,7.93849,2519.4,2519.1,0.7779]
[1730458630528,3.9692,2519.4,2519.1,0.7779]
[1730458631968,7.93848,2519.4,2519.1,0.7779]
[1730458632260,3.9692,2519.4,2519.1,0.7779]
[1730458633083,3.96951,2519.2,2518.9,0.8235]
[1730458634242,7.93916,2519.2,2518.9,0.8235]
[1730458634476,1.81599858,2519.2,2518.6,0.7999]
[1730458634783,3.97009,2518.9,2518.6,0.7999]
[1730458634936,7.9402,2518.9,2518.6,0.7999]
[1730458635138,3.97009,2518.9,2518.6,0.7999]
[1730458636392,3.97008,2518.9,2518.6,0.7999]
[1730458639382,4.45134986,2519.1,2518.6,0.7999]
[1730458639569,4.45134986,2519.1,2518.6,4.77026]
[1730458639570,3.96983,2519.0,2518.6,4.77026]
[1730458641002,3.96968,2519.1,2518.6,4.77026]
[1730458641162,3.96967,2519.1,2518.6,4.77026]
[1730458642264,3.96984,2519.0,2518.6,4.77026]
[1730458642492,5.78553858,2519.2,2518.6,5.82595286]
[1730458642791,3.96954,2519.2,2518.8,2.63809858]
[1730458643550,3.96954,2519.2,2518.8,6.60815858]
[1730458643747,3.9693,2519.4,2518.9,6.60168858]
[1730458643947,3.9693,2519.4,2519.0,0.88792385]
[1730458644232,7.93861,2519.4,2518.9,4.78569]
[1730458644490,3.9693,2519.4,2518.9,4.78569]
[1730458644894,3.9693,2519.4,2518.9,6.60168858]
[1730458645190,3.96937,2519.3,2519.0,0.8071]
[1730458645993,3.96927,2519.4,2519.0,0.8071]
[1730458646226,3.96927,2519.4,2519.0,4.77692]
[1730458647465,6.96899,2519.6,2519.0,5.83321586]
[1730458647770,3.96906,2519.5,2519.1,0.7848]
[1730458649303,8.78498858,2519.6,2519.1,0.7848]
[1730458649304,3.9692,2519.4,2519.1,0.7848]
[1730458649671,3.96944,2519.3,2518.9,0.7848]
[1730458649906,3.96954,2519.2,2518.9,0.7848]
[1730458651297,3.96936,2519.3,2518.9,0.7848]
[1730458652595,7.9388,2519.3,2518.9,0.7848]
[1730458652795,3.96936,2519.3,2518.9,0.7848]
[1730458653314,7.9388,2519.3,2518.9,0.7848]
[1730458653606,3.96954,2519.2,2518.9,0.7848]
[1730458654603,3.96936,2519.3,2518.9,0.7848]
[1730458654784,7.93883,2519.3,2518.9,0.7848]
[1730458655685,3.96936,2519.3,2518.9,0.7848]
[1730458656012,7.93885,2519.3,2518.9,0.7848]
[1730458656735,3.96936,2519.3,2518.9,0.7848]
[1730458657526,7.93884,2519.3,2518.9,0.7848]
[1730458657678,3.96936,2519.3,2518.9,0.7848]
[1730458659171,3.96954,2519.2,2518.9,0.7848]
[1730458660744,3.96974,2519.1,2518.9,0.7848]
[1730458660949,4.94501686,2519.2,2518.9,0.7848]
[1730458660950,6.76100544,2519.2,2518.9,0.7848]
[1730458661242,3.96977,2519.1,2518.9,0.7848]
[1730458661442,3.96982,2519.0,2518.9,0.7848]
[1730458664937,3.96982,2519.0,2518.7,0.8056]
[1730458666101,3.97009,2518.9,2518.7,0.8056]
[1730458667566,3.96982,2519.0,2518.7,0.8056]
[1730458668454,7.93979,2519.0,2518.7,0.8056]
[1730458668653,3.96982,2519.0,2518.7,0.8056]
[1730458671882,7.93976,2519.0,2518.7,0.8056]
[1730458672446,3.97003,2518.9,2518.7,0.8056]
[1730458672643,3.97003,2518.9,2518.5,0.7809]
[1730458677501,3.97017,2518.8,2518.5,0.7809]
[1730458678185,3.97017,2518.8,2518.3,4.79205]
[1730458678593,3.97032,2518.7,2518.3,4.79205]
[1730458678765,6.97015,2518.8,2518.3,4.79205]
[1730458678971,3.97059,2518.6,2518.3,0.8212]
[1730458679397,4.35602786,2518.8,2518.3,0.8212]
[1730458679568,3.9703,2518.7,2518.3,0.8212]
[1730458679907,7.9407,2518.7,2518.3,0.8212]
[1730458680106,3.97046,2518.6,2518.3,0.8212]
[1730458683214,7.94072,2518.7,2518.3,0.8212]
[1730458683416,3.97046,2518.6,2518.3,0.8212]
[1730458686819,6.97017,2518.8,2518.4,1.81599858]
[1730458686820,3.97031,2518.7,2518.4,1.81599858]
[1730458688216,7.94072,2518.7,2518.4,1.81599858]
[1730458688378,3.97031,2518.7,2518.4,1.81599858]
[1730458691841,3.96968,2519.1,2518.5,0.7939]
[1730458691842,3.0,2519.1,2518.5,0.7939]
[1730458691989,3.0,2518.9,2518.6,1.81599858]
[1730458692630,6.97,2518.9,2518.6,1.81599858]
[1730458692801,6.97,2518.9,2518.5,4.76441]
[1730458692999,6.97,2518.9,2518.5,5.81953386]
[1730458694591,3.97014,2518.8,2518.5,0.7939]
[1730458695490,6.97,2518.9,2518.5,0.7939]
[1730458695732,10.9401,2518.9,2518.5,0.7939]
[1730458695928,6.97,2518.9,2518.5,4.76444]
[1730458696085,10.94007,2518.9,2518.5,6.58043858]
[1730458696286,6.97,2518.9,2518.5,6.58043858]
[1730458696519,3.97,2518.9,2518.6,0.7723]
[1730458698356,4.54859986,2518.9,2518.6,0.7723]
[1730458698920,7.94011,2518.9,2518.6,0.7723]
[1730458699438,6.96984,2519.0,2518.6,0.7723]
[1730458700152,3.97004,2518.9,2518.6,0.7723]
[1730458704568,3.97,2518.9,2518.6,0.7723]
[1730458709795,3.0,2519.0,2518.6,0.7723]
[1730458709796,10.93981,2519.0,2518.6,0.7723]
[1730458709957,6.96985,2519.0,2518.6,0.7723]
[1730458710163,3.96998,2518.9,2518.6,0.7723]
[1730458716808,3.97014,2518.8,2518.6,0.7723]
[1730458718930,3.96999,2518.9,2518.6,0.7723]
[1730458720184,7.94006,2518.9,2518.6,0.7723]
[1730458720384,3.96999,2518.9,2518.6,0.7723]
[1730458721901,7.94008,2518.9,2518.6,0.7723]
[1730458722203,3.96999,2518.9,2518.6,0.7723]
[1730458722928,3.96998,2518.9,2518.6,0.7723]
[1730458723133,7.9401,2518.9,2518.6,0.7723]
[1730458724324,3.96998,2518.9,2518.6,0.7723]
[1730458724821,6.96992,2519.0,2518.6,0.7723]
[1730458725404,3.97001,2518.9,2518.6,0.7723]
[1730458725599,10.93986,2519.0,2518.6,0.7723]
[1730458725846,6.96992,2519.0,2518.6,0.7723]
[1730458726150,10.93984,2519.0,2518.6,0.7723]
[1730458726343,3.97,2518.9,2518.6,0.7723]
[1730458727322,6.96992,2519.0,2518.6,0.7723]
[1730458727507,10.93989,2519.0,2518.6,0.7723]
[1730458727945,3.97002,2518.9,2518.6,0.7723]
[1730458728815,6.96992,2519.0,2518.6,0.7723]
[1730458729534,3.97007,2518.9,2518.6,0.7723]
[1730458729910,6.96992,2519.0,2518.6,0.7723]
[1730458729911,3.9703,2518.7,2518.6,0.7723]
[1730458730116,4.764351,2518.7,2518.2,2.38561398]
[1730458730358,3.97053,2518.6,2518.2,0.8079]
[1730458730640,3.97064,2518.5,2518.2,0.8079]
[1730458731405,3.97048,2518.6,2518.2,0.8079]
[1730458734513,3.97086,2518.4,2518.2,0.8079]
[1730458735060,3.97086,2518.4,2518.0,4.999261]
[1730458735061,3.97086,2518.4,2518.0,0.8043]
[1730458736255,3.97086,2518.4,2518.0,4.77562]
[1730458736816,3.97063,2518.5,2518.0,4.77562]
[1730458737018,3.0,2518.4,2518.0,4.77562]
[1730458737329,6.97079,2518.4,2518.0,4.77562]
[1730458738327,3.0,2518.4,2518.0,4.77562]
[1730458739432,6.97078,2518.4,2518.0,4.77562]
[1730458741686,6.97078,2518.4,2518.0,0.8043]
[1730458742544,3.0,2518.4,2518.0,0.8043]
[1730458742769,3.97094,2518.3,2518.0,0.8043]
[1730458742973,3.97094,2518.3,2517.8,0.7521]
[1730458742974,3.97113,2518.2,2517.8,0.7521]
[1730458743281,3.97132,2518.1,2517.8,0.7521]
[1730458743483,6.9711,2518.2,2517.8,0.7521]
[1730458743766,8.00098139,2518.2,2517.8,0.7521]
[1730458743972,8.00098139,2518.2,2517.8,4.72379]
[1730458744872,4.02988139,2518.2,2517.8,4.72379]
[1730458745173,0.8306,2518.6,2518.1,1.81599858]
[1730458745373,6.97065,2518.5,2518.1,5.78714858]
[1730458745801,3.97078,2518.4,2518.1,1.81599858]
[1730458746158,3.97078,2518.4,2518.0,6.56239858]
[1730458747077,7.94163,2518.4,2518.0,6.56239858]
[1730458747397,3.97078,2518.4,2518.0,6.56239858]
[1730458747973,3.97078,2518.4,2518.0,2.59099858]
[1730458748159,7.94164,2518.4,2518.0,2.59099858]
[1730458748361,6.97063,2518.5,2518.0,6.56232858]
[1730458748587,6.97063,2518.5,2518.0,7.61571544]
[1730458749205,4.79886,2518.9,2518.4,1.81599858]
[1730458749401,3.96983,2519.0,2518.5,0.8043]
[1730458749611,3.97005,2518.9,2518.5,2.62029858]
[1730458749757,3.96983,2519.0,2518.5,2.62029858]
[1730458749758,3.96983,2519.0,2518.5,6.59086858]
[1730458750504,3.97,2518.9,2518.5,6.59086858]
[1730458751177,3.96986,2519.0,2518.5,6.59086858]
[1730458752503,6.96969,2519.1,2518.5,6.59086858]
[1730458752662,3.97,2518.9,2518.5,6.59086858]
[1730458754409,3.96984,2519.0,2518.5,6.59086858]
[1730458754881,3.97,2518.9,2518.5,6.59086858]
[1730458755071,3.97,2518.9,2518.5,2.62029858]
[1730458755372,3.97,2518.9,2518.5,6.59090858]
[1730458755878,3.97,2518.9,2518.5,2.62029858]
[1730458756086,8.78577858,2519.1,2518.5,6.59087858]
[1730458756393,3.96991,2519.0,2518.5,6.59087858]
[1730458756904,3.97,2518.9,2518.5,2.62029858]
[1730458757072,7.9401,2518.9,2518.5,2.62029858]
[1730458757468,3.97,2518.9,2518.5,6.59089858]
[1730458757904,3.97,2518.9,2518.5,2.62029858]
[1730458759607,7.94009,2518.9,2518.5,2.62029858]
[1730458759772,3.97,2518.9,2518.5,0.8043]
[1730458760805,0.7767,2519.0,2518.5,6.59080858]
[1730458761307,3.96999,2518.9,2518.5,6.59080858]
[1730458762770,11.90105786,2519.1,2518.5,10.56134858]
[1730458763117,3.96986,2519.0,2518.5,6.59080858]
[1730458763966,6.96978,2519.1,2518.5,6.59080858]
[1730458764167,6.96978,2519.1,2518.6,3.97038]
[1730458764400,6.96978,2519.1,2518.7,0.7568]
[1730458764613,3.0,2519.2,2518.7,0.7568]
[1730458764836,3.0,2519.0,2518.7,0.7568]
[1730458764969,3.0,2519.0,2518.7,1.64425585]
[1730458765879,3.96968,2519.1,2518.7,0.7568]
[1730458766105,3.9699,2519.0,2518.7,0.7568]
[1730458767115,3.97001,2518.9,2518.7,0.7568]
[1730458773409,3.96983,2519.0,2518.7,0.7568]
[1730458784856,3.96999,2518.9,2518.7,0.7568]
[1730458785072,4.367139,2518.8,2518.7,0.7568]
[1730458786256,4.367139,2518.8,2518.5,0.8097]
[1730458786432,3.97014,2518.8,2518.5,0.8097]
[1730458786633,3.96999,2518.9,2518.5,0.8097]
[1730458787864,3.96999,2518.9,2518.5,4.78025]
[1730458788356,3.96999,2518.9,2518.5,0.8097]
[1730458788558,3.96999,2518.9,2518.5,4.78029]
[1730458789427,4.79889,2519.1,2518.5,4.78029]
[1730458789428,6.9699,2519.0,2518.5,4.78029]
[1730458789628,6.9699,2519.0,2518.5,8.7508]
[1730458789849,6.9699,2519.0,2518.5,4.78021]
[1730458790119,6.9699,2519.0,2518.6,0.7634]
[1730458791629,3.0,2519.0,2518.8,0.7634]
[1730458791869,3.0,2519.2,2518.8,0.7634]
[1730458792091,3.0,2519.2,2518.9,0.7634]
[1730458792873,5.78516858,2519.5,2518.9,3.96989]
[1730458793070,5.78516858,2519.5,2519.1,0.7634]
[1730458793071,3.96917,2519.5,2519.1,0.7634]
[1730458793370,3.96914,2519.5,2519.1,0.7634]
[1730458793573,3.9692,2519.4,2519.1,0.7634]
[1730458800407,3.0,2519.4,2519.1,0.7634]
[1730458800567,6.96927,2519.4,2519.1,0.7634]
[1730458800967,4.27544086,2519.4,2519.1,0.7634]
[1730458801205,3.96935,2519.3,2519.1,0.7634]
[1730458801505,1.81599858,2519.3,2519.1,0.7634]
[1730458801802,5.78542858,2519.3,2519.1,0.7634]
[1730458802214,9.75491858,2519.3,2518.9,0.7808]
[1730458802680,5.78542858,2519.3,2518.9,0.7808]
[1730458803407,9.75490858,2519.3,2518.9,0.7808]
[1730458803905,5.78542858,2519.3,2518.9,0.7808]
[1730458804263,3.0,2519.4,2519.0,3.9698]
[1730458804470,3.0,2519.4,2519.1,0.8288]
[1730458804706,6.9692,2519.4,2519.1,0.8288]
[1730458805504,3.0,2519.5,2519.1,4.79846]
[1730458805806,3.9689,2519.6,2519.2,0.8288]
[1730458806386,3.9689,2519.6,2519.2,1.49023786]
[1730458806584,4.81599858,2519.7,2519.3,0.8237]
[1730458806898,6.96876,2519.7,2519.3,0.8237]
[1730458807482,3.0,2519.7,2519.3,3.96923]
[1730458807708,7.93696,2519.9,2519.4,4.79281]
[1730458808019,3.96845,2519.9,2519.5,0.8237]
[1730458808212,3.96825,2520.0,2519.5,4.79272]
[1730458808847,3.9685,2519.9,2519.5,0.8237]
[1730458809001,3.96825,2520.0,2519.5,3.96904]
[1730458809199,3.0,2519.9,2519.6,0.8237]
[1730458809512,3.96841,2519.9,2519.6,0.8237]
[1730458810742,5.78413858,2520.1,2519.6,0.8237]
[1730458810743,3.0,2520.0,2519.6,0.8237]
[1730458811040,3.96851,2519.9,2519.6,0.8237]
[1730458812261,3.9686,2519.8,2519.6,0.8237]
[1730458812741,3.96842,2519.9,2519.6,0.8237]
[1730458812953,7.93692,2519.9,2519.6,0.8237]
[1730458813442,3.96858,2519.8,2519.6,0.8237]
[1730458813833,7.93698,2519.9,2519.6,0.8237]
[1730458814541,3.96842,2519.9,2519.6,0.8237]
[1730458814788,7.93697,2519.9,2519.6,0.8237]
[1730458816046,7.93692,2519.9,2519.6,0.8237]
[1730458816814,3.96842,2519.9,2519.6,0.8237]
[1730458817219,3.96858,2519.8,2519.6,0.8237]
[1730458818281,7.93695,2519.9,2519.6,0.8237]
[1730458819468,3.96842,2519.9,2519.6,0.8237]
[1730458820282,7.93693,2519.9,2519.6,0.8237]
[1730458821151,3.96842,2519.9,2519.6,0.8237]
[1730458821888,7.14752082,2519.9,2519.4,0.7899]
[1730458822063,3.96874,2519.7,2519.4,0.7899]
[1730458823652,3.0,2519.6,2519.1,0.55]
[1730458823852,3.0,2519.6,2519.1,4.51966]
[1730458823853,3.96911,2519.5,2519.1,4.51966]
[1730458824455,3.16968444,2519.5,2519.0,0.8112]
[1730458824668,3.96928,2519.4,2519.0,0.8112]
[1730458825988,3.96953,2519.2,2519.0,0.8112]
[1730458826397,7.93918,2519.2,2519.0,0.8112]
[1730458826709,3.96967,2519.1,2519.0,0.8112]
[1730458827420,3.96953,2519.2,2518.8,0.7647]
[1730458827627,3.96984,2519.0,2518.8,0.7647]
[1730458827835,3.9701,2518.9,2518.6,0.7647]
[1730458827987,3.97023,2518.8,2518.6,0.7647]
[1730458830294,3.97,2518.9,2518.6,0.7647]
[1730458834416,3.97015,2518.8,2518.5,0.05954488]
[1730458834615,9.75609858,2518.9,2518.5,0.05954488]
[1730458834930,3.97015,2518.8,2518.5,0.05954488]
[1730458835252,3.97022,2518.8,2518.5,0.05954488]
[1730458837756,6.96985,2519.0,2518.6,0.8018]
[1730458838510,6.60846858,2519.5,2518.9,0.8317]
[1730458838743,6.60846858,2519.5,2518.9,0.91109745]
[1730458838744,3.96907,2519.5,2518.9,0.91109745]
[1730458839086,3.96889,2519.6,2519.1,0.8317]
[1730458839215,3.96889,2519.6,2519.1,4.80123]
[1730458841442,3.96904,2519.5,2519.1,4.80123]
[1730458841647,3.96904,2519.5,2519.1,5.49022382]
[1730458841855,3.9689,2519.6,2519.1,5.49022382]
[1730458842571,3.96904,2519.5,2519.1,5.49022382]
[1730458843030,3.96888,2519.6,2519.1,5.49022382]
[1730458844031,5.78484858,2519.7,2519.2,5.09568334]
[1730458844235,5.78484858,2519.7,2519.3,0.8118]
[1730458844568,9.75370858,2519.7,2519.3,0.8118]
[1730458844954,3.96891,2519.6,2519.3,0.8118]
[1730458845163,5.78484858,2519.7,2519.3,0.8118]
[1730458846239,5.78484858,2519.7,2519.3,1.21741995]
[1730458846779,1.81599858,2519.7,2519.3,1.21741995]
[1730458846977,6.96857,2519.8,2519.3,9.15593995]
[1730458847270,3.96883,2519.7,2519.3,1.21741995]
[1730458847528,3.0,2519.7,2519.3,0.8118]
[1730458847671,3.96897,2519.6,2519.3,0.8118]
[1730458848040,3.96914,2519.5,2519.2,0.57629334]
[1730458848187,7.93794,2519.6,2519.1,4.75974]
[1730458848712,3.96912,2519.5,2519.1,0.7901]
[1730458848874,7.93825,2519.5,2519.1,0.7901]
[1730458849417,3.9692,2519.4,2519.1,0.7901]
[1730458850814,3.96891,2519.6,2519.1,0.7901]
[1730458851012,3.96905,2519.5,2519.1,0.7901]
[1730458851718,3.0,2519.5,2519.1,4.75967]
[1730458852016,3.96891,2519.6,2519.1,5.632634]
[1730458852380,3.96891,2519.6,2519.2,1.81599858]
[1730458852596,3.96913,2519.5,2519.2,1.81599858]
[1730458853028,3.96891,2519.6,2519.2,1.81599858]
[1730458853225,3.0,2519.7,2519.2,2.96603997]
[1730458853432,3.0,2519.7,2519.4,0.8262]
[1730458854726,3.0,2519.7,2519.4,4.79536]
[1730458855536,3.0,2519.8,2519.4,4.79536]
[1730458855736,6.96859,2519.8,2519.4,4.79536]
[1730458855949,3.0,2519.8,2519.4,0.8262]
[1730458856248,3.96873,2519.7,2519.4,0.8262]
[1730458856800,3.0,2519.8,2519.4,4.79539]
[1730458857401,6.96864,2519.8,2519.4,4.79539]
[1730458857849,3.9684,2520.0,2519.6,1.81599858]
[1730458858012,3.9684,2520.0,2519.7,0.7508]
[1730458859841,7.93674,2520.0,2519.7,0.7508]
[1730458860006,3.96834,2520.0,2519.7,0.7508]
[1730458860204,6.96809,2520.1,2519.7,0.7508]
[1730458861248,6.96809,2520.1,2519.7,4.71951]
[1730458861433,10.93634,2520.1,2519.7,0.7508]
[1730458861631,6.96809,2520.1,2519.7,0.7508]
[1730458861811,10.93627,2520.1,2519.7,0.7508]
[1730458862329,6.96809,2520.1,2519.7,0.7508]
[1730458862744,10.9363,2520.1,2519.7,0.7508]
[1730458863032,3.0,2520.2,2519.8,1.81599858]
[1730458863260,6.96797,2520.2,2519.9,0.7586]
[1730458864115,3.0,2520.3,2519.9,0.7586]
[1730458864317,6.9678,2520.3,2519.9,0.7586]
[1730458865611,3.0,2520.3,2519.9,6.54292858]
[1730458865838,3.0,2520.3,2519.9,0.7586]
[1730458867354,6.96779,2520.3,2519.9,0.7586]
[1730458867652,3.96796,2520.2,2519.9,0.7586]
[1730458868041,6.96779,2520.3,2519.9,0.7586]
[1730458868042,3.0,2520.3,2519.9,0.7586]
[1730458868240,3.96779,2520.3,2519.9,0.7586]
[1730458868622,3.96794,2520.2,2519.9,0.7586]
[1730458869561,3.96812,2520.1,2519.9,0.7586]
[1730458869770,3.96794,2520.2,2519.9,0.7586]
[1730458870663,3.96812,2520.1,2519.9,0.7586]
[1730458871030,3.96794,2520.2,2519.9,0.7586]
[1730458871233,7.93596,2520.2,2519.9,0.7586]
[1730458871450,3.96794,2520.2,2519.9,0.7586]
[1730458871767,6.96771,2520.4,2519.9,0.7586]
[1730458872071,3.96782,2520.3,2519.9,4.727]
[1730458872238,3.96782,2520.3,2519.9,0.7586]
[1730458872442,3.96161086,2520.4,2519.9,0.7586]
[1730458872780,3.96778,2520.3,2519.9,0.7586]
[1730458874648,3.96778,2520.3,2519.9,4.72699]